fUSD/lending_fUSD_20250211
["ID","MTS","AMOUNT","RATE_DAILY","PERIOD"]
[352753645,1739292652931,-992.82,0.00016575,2]
[352753646,1739292652946,-500.0,0.00016575,2]
[352753647,1739292652959,-536.015013,0.00016575,2]
[352753648,1739292652971,-536.015013,0.00016575,2]
[352753649,1739292652983,-1121.5,0.00016575,2]
[352753650,1739292652994,-500.0,0.00016575,2]
[352753651,1739292653005,-824.99,0.00016575,2]
[352753652,1739292653016,-500.0,0.00016575,2]
[352753653,1739292653027,-1979.99,0.00016575,2]
[352753654,1739292653038,-500.0,0.00016575,2]
[352753655,1739292653051,-536.015013,0.00016575,2]
[352753656,1739292653066,-536.015013,0.00016575,2]
[352753657,1739292653077,-1201.69,0.00016575,2]
[352753658,1739292653088,-500.0,0.00016575,2]
[352753659,1739292653099,-500.0,0.00016575,2]
[352753660,1739292653109,-500.0,0.00016575,2]
[352753661,1739292653121,-635.61,0.00016575,2]
[352753662,1739292653133,-812.69,0.00016575,2]
[352753663,1739292653145,-500.0,0.00016575,2]
[352753664,1739292653156,-500.0,0.00016575,2]
[352753665,1739292653167,-1168.66,0.00016575,2]
[352753666,1739292653178,-1000.0,0.00016575,2]
[352753667,1739292653190,-2251.11,0.00016575,2]
[352753668,1739292653202,-635.05,0.00016575,2]
[352753669,1739292653214,-411.33715,0.00016594,2]
[352753670,1739292653226,-411.33715,0.00016594,2]
[352753671,1739292653237,-151.0,0.00016594,2]
[352753672,1739292653249,-151.0,0.00016594,2]
[352753673,1739292653260,-164.127336,0.00016594,2]
[352753674,1739292653272,-164.127336,0.00016594,2]
[352753675,1739292653285,-949.451014,0.00016594,2]
[352753676,1739292653298,-949.451014,0.00016594,2]
[352753677,1739292653310,-723.29023206,0.00016594,2]
[352753678,1739292653322,-4400.0,0.000166,6]
[352753679,1739292653334,-153.60690226,0.00016612,2]
[352753680,1739292653345,-156.14492209,0.00016612,2]
[352753681,1739292653357,-344.7842236,0.00016612,2]
[352753682,1739292653368,-723.29023206,0.00016646,2]
[352753683,1739292653380,-151.0,0.00016648,2]
[352753684,1739292653391,-151.0,0.00016648,2]
[352753685,1739292653402,-151.0,0.00016648,2]
[352753686,1739292653413,-151.0,0.00016648,2]
[352753687,1739292653424,-162.045334,0.00016648,2]
[352753688,1739292653436,-162.045334,0.00016648,2]
[352753689,1739292653448,-617.67,0.00016648,2]
[352753690,1739292653460,-671.45,0.00016648,2]
[352753691,1739292653471,-929.9,0.00016648,2]
[352753692,1739292653482,-772.09,0.00016658,30]
[352753693,1739292653495,-151.0,0.00016685,2]
[352753694,1739292653506,-557.0,0.00016695,2]
[352753695,1739292653518,-723.29023206,0.00016697,2]
[352753696,1739292653530,-5900.0,0.000167,6]
[352753697,1739292653541,-151.0,0.0001671,2]
[352753698,1739292653552,-238.865244,0.0001671,2]
[352753699,1739292653563,-238.865244,0.0001671,2]
[352753700,1739292653574,-696.012988,0.0001671,2]
[352753701,1739292653585,-696.012988,0.0001671,2]
[352753702,1739292653596,-237.406569,0.0001671,2]
[352753703,1739292653607,-237.406569,0.0001671,2]
[352753704,1739292653619,-151.0,0.0001671,2]
[352753705,1739292653630,-151.0,0.0001671,2]
[352753706,1739292653642,-151.0,0.0001671,2]
[352753707,1739292653653,-151.0,0.0001671,2]
[352753708,1739292653664,-151.0,0.0001671,2]
[352753709,1739292653675,-205.034674,0.0001671,2]
[352753710,1739292653688,-205.034674,0.0001671,2]
[352753711,1739292653699,-228.811866,0.0001671,2]
[352753712,1739292653711,-151.0,0.0001671,2]
[352753713,1739292653722,-151.0,0.00016711,2]
[352753714,1739292653733,-151.0,0.00016711,2]
[352753715,1739292653744,-150.0,0.00016711,2]
[352753716,1739292653757,-311.172756,0.00016711,2]
[352753717,1739292653768,-311.172756,0.00016711,2]
[352753718,1739292653779,-299.197136,0.00016711,2]
[352753719,1739292653790,-299.197136,0.00016711,2]
[352753720,1739292653802,-272.659298,0.00016711,2]
[352753721,1739292653813,-272.659298,0.00016711,2]
[352753722,1739292653824,-237.042097,0.00016711,2]
[352753723,1739292653835,-237.042097,0.00016711,2]
[352753724,1739292653846,-151.0,0.00016711,2]
[352753725,1739292653857,-184.233011,0.00016711,2]
[352753726,1739292653869,-184.233011,0.00016711,2]
[352753727,1739292653881,-151.0,0.00016711,2]
[352753728,1739292653892,-151.0,0.00016711,2]
[352753729,1739292653903,-194.628952,0.00016711,2]
[352753730,1739292653914,-412.116862,0.00016711,2]
[352753731,1739292653924,-194.628952,0.00016711,2]
[352753732,1739292653936,-412.116862,0.00016711,2]
[352753733,1739292653948,-151.0,0.00016711,2]
[352753734,1739292653959,-500.0,0.00016711,2]
[352753735,1739292653971,-1797.0,0.00016712,2]
[352753736,1739292653981,-163.944545,0.00016712,2]
[352753737,1739292653993,-151.0,0.00016712,2]
[352753738,1739292654004,-151.0,0.00016712,2]
[352753739,1739292654016,-151.0,0.00016712,2]
[352753740,1739292654026,-151.0,0.00016712,2]
[352753741,1739292654038,-311.172756,0.00016712,2]
[352753742,1739292654049,-311.172756,0.00016712,2]
[352753743,1739292654060,-311.172756,0.00016712,2]
[352753744,1739292654071,-311.172766,0.00016712,2]
[352753745,1739292654082,-299.197136,0.00016712,2]
[352753746,1739292654093,-299.197136,0.00016712,2]
[352753747,1739292654104,-299.197136,0.00016712,2]
[352753748,1739292654116,-299.197132,0.00016712,2]
[352753749,1739292654127,-151.0,0.00016712,2]
[352753750,1739292654138,-151.0,0.00016712,2]
[352753751,1739292654149,-151.0,0.00016712,2]
[352753752,1739292654160,-151.0,0.00016712,2]
[352753753,1739292654171,-151.0,0.00016712,2]
[352753754,1739292654182,-272.659298,0.00016712,2]
[352753755,1739292654194,-272.659298,0.00016712,2]
[352753756,1739292654205,-272.659298,0.00016712,2]
[352753757,1739292654216,-272.659298,0.00016712,2]
[352753758,1739292654227,-1043.727911,0.00016712,2]
[352753759,1739292654238,-152.411138,0.00016712,2]
[352753760,1739292654249,-151.0,0.00016712,2]
[352753761,1739292654260,-152.411138,0.00016712,2]
[352753762,1739292654271,-151.0,0.00016712,2]
[352753763,1739292654281,-1232.861141,0.00016712,2]
[352753764,1739292654292,-151.0,0.00016712,2]
[352753765,1739292654303,-500.0,0.00016712,2]
[352753766,1739292654314,-500.0,0.00016712,2]
[352753767,1739292654324,-227.414,0.00016712,2]
[352753768,1739292654335,-227.414,0.00016712,2]
[352753769,1739292654345,-227.414,0.00016712,2]
[352753770,1739292654355,-500.0,0.00016712,2]
[352753771,1739292654366,-503.72993262,0.00016712,2]
[352753772,1739292654376,-227.414,0.00016712,2]
[352753773,1739292654386,-227.414,0.00016712,2]
[352753774,1739292654398,-227.414,0.00016712,2]
[352753775,1739292654408,-151.0,0.00016712,2]
[352753776,1739292654418,-151.0,0.00016712,2]
[352753777,1739292654429,-151.0,0.00016712,2]
[352753778,1739292654440,-1200.0,0.00016712,2]
[352753779,1739292654451,-372.18395184,0.00016712,2]
[352753780,1739292654461,-500.0,0.00016712,2]
[352753781,1739292654472,-500.0,0.00016712,2]
[352753782,1739292654482,-500.0,0.00016712,2]
[352753783,1739292654493,-151.0,0.00016712,2]
[352753784,1739292654504,-151.0,0.00016712,2]
[352753785,1739292654515,-151.0,0.00016712,2]
[352753786,1739292654526,-151.0,0.00016712,2]
[352753787,1739292654537,-151.0,0.00016712,2]
[352753788,1739292654547,-151.0,0.00016712,2]
[352753789,1739292654557,-151.0,0.00016712,2]
[352753790,1739292654567,-151.0,0.00016712,2]
[352753791,1739292654577,-151.0,0.00016712,2]
[352753792,1739292654588,-500.0,0.00016712,2]
[352753793,1739292654599,-500.0,0.00016712,2]
[352753794,1739292654609,-151.0,0.00016712,2]
[352753795,1739292654620,-151.0,0.00016712,2]
[352753796,1739292654630,-500.0,0.00016712,2]
[352753797,1739292654641,-658.54,0.00016712,2]
[352753798,1739292654652,-500.0,0.00016712,2]
[352753799,1739292654662,-238.865244,0.00016712,2]
[352753800,1739292654672,-238.865244,0.00016712,2]
[352753801,1739292654683,-500.0,0.00016712,2]
[352753802,1739292654693,-500.0,0.00016712,2]
[352753803,1739292654704,-238.865244,0.00016712,2]
[352753804,1739292654714,-238.865244,0.00016712,2]
[352753805,1739292654729,-500.0,0.00016712,2]
[352753806,1739292654740,-500.0,0.00016712,2]
[352753807,1739292654752,-500.0,0.00016712,2]
[352753808,1739292654763,-500.0,0.00016712,2]
[352753809,1739292654774,-1636.71338,0.00016712,2]
[352753810,1739292654785,-1636.71338,0.00016712,2]
[352753811,1739292654799,-151.523705,0.00016712,2]
[352753812,1739292654810,-500.0,0.00016712,2]
[352753813,1739292654822,-500.0,0.00016712,2]
[352753814,1739292654833,-500.0,0.00016712,2]
[352753815,1739292654844,-523.72,0.00016712,2]
[352753816,1739292654855,-500.0,0.00016712,2]
[352753817,1739292654873,-500.0,0.00016712,2]
[352753818,1739292654884,-500.0,0.00016712,2]
[352753819,1739292654895,-500.0,0.00016712,2]
[352753820,1739292654906,-500.0,0.00016712,2]
[352753821,1739292654918,-500.0,0.00016712,2]
[352753822,1739292654929,-500.0,0.00016712,2]
[352753823,1739292654940,-696.012988,0.00016712,2]
[352753824,1739292654951,-696.012988,0.00016712,2]
[352753825,1739292654962,-500.0,0.00016712,2]
[352753826,1739292654973,-696.012988,0.00016712,2]
[352753827,1739292654983,-696.012988,0.00016712,2]
[352753828,1739292654996,-237.406569,0.00016712,2]
[352753829,1739292655007,-237.406569,0.00016712,2]
[352753830,1739292655018,-500.0,0.00016712,2]
[352753831,1739292655029,-237.406569,0.00016712,2]
[352753832,1739292655040,-237.406569,0.00016712,2]
[352753833,1739292655051,-151.0,0.00016712,2]
[352753834,1739292655062,-151.0,0.00016712,2]
[352753835,1739292655073,-500.0,0.00016712,2]
[352753836,1739292655084,-500.0,0.00016712,2]
[352753837,1739292655094,-500.0,0.00016712,2]
[352753838,1739292655105,-151.0,0.00016712,2]
[352753839,1739292655116,-160.869627,0.00016712,2]
[352753840,1739292655127,-500.0,0.00016712,2]
[352753841,1739292655138,-151.0,0.00016712,2]
[352753842,1739292655150,-708.99,0.00016712,2]
[352753843,1739292655161,-500.0,0.00016712,2]
[352753844,1739292655172,-609.27,0.00016712,2]
[352753845,1739292655184,-500.0,0.00016712,2]
[352753846,1739292655195,-288.24,0.00016712,2]
[352753847,1739292655205,-151.0,0.00016712,2]
[352753848,1739292655216,-500.0,0.00016712,2]
[352753849,1739292655226,-151.0,0.00016712,2]
[352753850,1739292655237,-500.0,0.00016712,2]
[352753851,1739292655253,-151.0,0.00016712,2]
[352753852,1739292655264,-151.0,0.00016712,2]
[352753853,1739292655274,-205.034674,0.00016712,2]
[352753854,1739292655286,-205.034674,0.00016712,2]
[352753855,1739292655296,-205.034674,0.00016712,2]
[352753856,1739292655308,-205.034674,0.00016712,2]
[352753857,1739292655318,-228.811866,0.00016712,2]
[352753858,1739292655329,-228.811866,0.00016712,2]
[352753859,1739292655726,-228.811866,0.00016712,2]
[352753860,1739292655755,-228.811866,0.00016712,2]
[352753861,1739292655768,-151.0,0.00016712,2]
[352753862,1739292655778,-151.263096,0.00016712,2]
[352753863,1739292655788,-151.0,0.00016712,2]
[352753864,1739292655797,-151.0,0.00016712,2]
[352753865,1739292655807,-151.0,0.00016712,2]
[352753866,1739292655817,-151.0,0.00016712,2]
[352753867,1739292655827,-500.0,0.00016712,2]
[352753868,1739292655836,-151.0,0.00016712,2]
[352753869,1739292655845,-151.0,0.00016712,2]
[352753870,1739292655854,-500.0,0.00016712,2]
[352753871,1739292655864,-620.8,0.00016712,2]
[352753872,1739292655876,-500.0,0.00016712,2]
[352753873,1739292655886,-500.0,0.00016712,2]
[352753874,1739292655895,-500.0,0.00016712,2]
[352753875,1739292655904,-616.82,0.00016712,2]
[352753876,1739292655914,-533.34,0.00016712,2]
[352753877,1739292655923,-500.0,0.00016712,2]
[352753878,1739292655933,-242.55995644,0.00016712,2]
[352753879,1739292655944,-162.045334,0.00016712,2]
[352753880,1739292655954,-162.045334,0.00016712,2]
[352753881,1739292655965,-512.37,0.00016712,2]
[352753882,1739292655974,-500.0,0.00016712,2]
[352753883,1739292655983,-162.045334,0.00016712,2]
[352753884,1739292655996,-162.045334,0.00016712,2]
[352753885,1739292656006,-500.0,0.00016712,2]
[352753886,1739292656016,-500.0,0.00016712,2]
[352753887,1739292656025,-626.01,0.00016712,2]
[352753888,1739292656035,-500.0,0.00016712,2]
[352753889,1739292656044,-593.14,0.00016712,2]
[352753890,1739292656054,-500.0,0.00016712,2]
[352753891,1739292656063,-368.87455766,0.00016712,2]
[352753892,1739292656073,-681.21,0.00016712,2]
[352753893,1739292656082,-500.0,0.00016712,2]
[352753894,1739292656091,-500.0,0.00016712,2]
[352753895,1739292656100,-500.0,0.00016712,2]
[352753896,1739292656110,-500.0,0.00016712,2]
[352753897,1739292656119,-565.98,0.00016712,2]
[352753898,1739292656128,-500.0,0.00016712,2]
[352753899,1739292656138,-610.07,0.00016712,2]
[352753900,1739292656147,-151.0,0.00016712,2]
[352753901,1739292656156,-151.0,0.00016712,2]
[352753902,1739292656165,-500.0,0.00016712,2]
[352753903,1739292656174,-500.0,0.00016712,2]
[352753904,1739292656183,-500.0,0.00016712,2]
[352753905,1739292656193,-500.0,0.00016712,2]
[352753906,1739292656202,-653.33,0.00016712,2]
[352753907,1739292656211,-500.0,0.00016712,2]
[352753908,1739292656221,-411.33715,0.00016712,2]
[352753909,1739292656230,-411.33715,0.00016712,2]
[352753910,1739292656239,-500.0,0.00016712,2]
[352753911,1739292656252,-500.0,0.00016712,2]
[352753912,1739292656261,-500.0,0.00016712,2]
[352753913,1739292656271,-411.33715,0.00016712,2]
[352753914,1739292656280,-411.33715,0.00016712,2]
[352753915,1739292656290,-500.0,0.00016712,2]
[352753916,1739292656299,-575.35,0.00016712,2]
[352753917,1739292656308,-543.76,0.00016712,2]
[352753918,1739292656318,-500.0,0.00016712,2]
[352753919,1739292656327,-351.73124764,0.00016712,2]
[352753920,1739292656336,-560.98,0.00016712,2]
[352753921,1739292656345,-500.0,0.00016712,2]
[352753922,1739292656355,-500.0,0.00016712,2]
[352753923,1739292656365,-500.0,0.00016712,2]
[352753924,1739292656385,-500.0,0.00016712,2]
[352753925,1739292656400,-500.0,0.00016712,2]
[352753926,1739292656410,-504.72,0.00016712,2]
[352753927,1739292656419,-500.0,0.00016712,2]
[352753928,1739292656428,-500.0,0.00016712,2]
[352753929,1739292656438,-721.21,0.00016712,2]
[352753930,1739292656447,-500.0,0.00016712,2]
[352753931,1739292656456,-500.0,0.00016712,2]
[352753932,1739292656465,-500.0,0.00016712,2]
[352753933,1739292656474,-500.0,0.00016712,2]
[352753934,1739292656483,-500.0,0.00016712,2]
[352753935,1739292656493,-312.345054,0.00016712,2]
[352753936,1739292656502,-312.345054,0.00016712,2]
[352753937,1739292656511,-151.0,0.00016712,2]
[352753938,1739292656520,-151.0,0.00016712,2]
[352753939,1739292656530,-500.0,0.00016712,2]
[352753940,1739292656539,-312.345054,0.00016712,2]
[352753941,1739292656548,-312.345054,0.00016712,2]
[352753942,1739292656558,-500.0,0.00016712,2]
[352753943,1739292656567,-151.0,0.00016712,2]
[352753944,1739292656575,-151.0,0.00016712,2]
[352753945,1739292656584,-590.15322022,0.00016712,2]
[352753946,1739292656593,-686.28,0.00016712,2]
[352753947,1739292656602,-151.0,0.00016712,2]
[352753948,1739292656611,-151.0,0.00016712,2]
[352753949,1739292656621,-151.0,0.00016712,2]
[352753950,1739292656630,-151.0,0.00016712,2]
[352753951,1739292656639,-500.0,0.00016712,2]
[352753952,1739292656648,-500.0,0.00016712,2]
[352753953,1739292656657,-628.87,0.00016712,2]
[352753954,1739292656666,-500.0,0.00016712,2]
[352753955,1739292656676,-500.0,0.00016712,2]
[352753956,1739292656685,-500.0,0.00016712,2]
[352753957,1739292656695,-656.08,0.00016712,2]
[352753958,1739292656704,-500.0,0.00016712,2]
[352753959,1739292656713,-500.0,0.00016712,2]
[352753960,1739292656722,-973.03,0.00016712,2]
[352753961,1739292656731,-769.16,0.00016712,2]
[352753962,1739292656740,-500.0,0.00016712,2]
[352753963,1739292656751,-500.0,0.00016712,2]
[352753964,1739292656761,-500.0,0.00016712,2]
[352753965,1739292656770,-151.0,0.00016712,2]
[352753966,1739292656780,-151.0,0.00016712,2]
[352753967,1739292656789,-500.0,0.00016712,2]
[352753968,1739292656798,-500.0,0.00016712,2]
[352753969,1739292656807,-500.0,0.00016712,2]
[352753970,1739292656816,-2633.29,0.00016712,2]
[352753971,1739292656825,-500.0,0.00016712,2]
[352753972,1739292656834,-608.46,0.00016712,2]
[352753973,1739292656843,-500.0,0.00016712,2]
[352753974,1739292656852,-500.0,0.00016712,2]
[352753975,1739292656864,-500.0,0.00016712,2]
[352753976,1739292656873,-500.0,0.00016712,2]
[352753977,1739292656882,-562.42,0.00016712,2]
[352753978,1739292656891,-702.19,0.00016712,2]
[352753979,1739292656900,-500.0,0.00016712,2]
[352753980,1739292656910,-151.0,0.00016712,2]
[352753981,1739292656920,-151.0,0.00016712,2]
[352753982,1739292656929,-151.0,0.00016712,2]
[352753983,1739292656938,-500.0,0.00016712,2]
[352753984,1739292656947,-151.0,0.00016712,2]
[352753985,1739292656956,-500.0,0.00016712,2]
[352753986,1739292656966,-603.78,0.00016712,2]
[352753987,1739292656975,-151.0,0.00016712,2]
[352753988,1739292656983,-151.0,0.00016712,2]
[352753989,1739292656995,-500.0,0.00016712,2]
[352753990,1739292657004,-500.0,0.00016712,2]
[352753991,1739292657013,-500.0,0.00016712,2]
[352753992,1739292657022,-500.0,0.00016712,2]
[352753993,1739292657032,-500.0,0.00016712,2]
[352753994,1739292657041,-500.0,0.00016712,2]
[352753995,1739292657050,-500.0,0.00016712,2]
[352753996,1739292657060,-500.0,0.00016712,2]
[352753997,1739292657069,-500.0,0.00016712,2]
[352753998,1739292657078,-521.19,0.00016712,2]
[352753999,1739292657087,-164.127336,0.00016712,2]
[352754000,1739292657096,-164.127336,0.00016712,2]
[352754001,1739292657105,-151.0,0.00016712,2]
[352754002,1739292657115,-151.0,0.00016712,2]
[352754003,1739292657124,-164.127336,0.00016712,2]
[352754004,1739292657133,-164.127336,0.00016712,2]
[352754005,1739292657143,-1362.81,0.00016712,2]
[352754006,1739292657152,-500.0,0.00016712,2]
[352754007,1739292657161,-500.0,0.00016712,2]
[352754008,1739292657170,-209.587498,0.00016712,2]
[352754009,1739292657179,-500.0,0.00016712,2]
[352754010,1739292657189,-557.52,0.00016712,2]
[352754011,1739292657198,-1147.2,0.00016712,2]
[352754012,1739292657207,-949.451014,0.00016712,2]
[352754013,1739292657217,-500.0,0.00016712,2]
[352754014,1739292657227,-949.451014,0.00016712,2]
[352754015,1739292657236,-949.451014,0.00016712,2]
[352754016,1739292657248,-949.451014,0.00016712,2]
[352754017,1739292657258,-500.0,0.00016712,2]
[352754018,1739292657268,-500.0,0.00016712,2]
[352754019,1739292657277,-337.254953,0.00016712,2]
[352754020,1739292657287,-337.254953,0.00016712,2]
[352754021,1739292657296,-500.0,0.00016712,2]
[352754022,1739292657306,-337.254953,0.00016712,2]
[352754023,1739292657316,-337.254953,0.00016712,2]
[352754024,1739292657325,-500.0,0.00016712,2]
[352754025,1739292657335,-681.22,0.00016712,2]
[352754026,1739292657344,-500.0,0.00016712,2]
[352754027,1739292657353,-765.29,0.00016712,2]
[352754028,1739292657363,-500.0,0.00016712,2]
[352754029,1739292657373,-500.0,0.00016712,2]
[352754030,1739292657383,-500.0,0.00016712,2]
[352754031,1739292657392,-500.0,0.00016712,2]
[352754032,1739292657402,-227.54043826,0.00016712,2]
[352754033,1739292657411,-500.0,0.00016712,2]
[352754034,1739292657421,-500.0,0.00016712,2]
[352754035,1739292657432,-500.0,0.00016712,2]
[352754036,1739292657442,-500.0,0.00016712,2]
[352754037,1739292657452,-230.47965878,0.00016712,2]
[352754038,1739292657462,-659.27,0.00016712,2]
[352754039,1739292657472,-500.0,0.00016712,2]
[352754040,1739292657482,-237.042097,0.00016712,2]
[352754041,1739292657496,-500.0,0.00016712,2]
[352754042,1739292657506,-500.0,0.00016712,2]
[352754043,1739292657516,-237.042097,0.00016712,2]
[352754044,1739292657527,-549.1,0.00016712,2]
[352754045,1739292657536,-249.98432644,0.00016712,2]
[352754046,1739292657546,-571.46,0.00016712,2]
[352754047,1739292657555,-151.0,0.00016712,2]
[352754048,1739292657565,-151.0,0.00016712,2]
[352754049,1739292657575,-500.0,0.00016712,2]
[352754050,1739292657584,-500.0,0.00016712,2]
[352754051,1739292657594,-313.68867571,0.00016712,2]
[352754052,1739292657603,-500.0,0.00016712,2]
[352754053,1739292657614,-567.07,0.00016712,2]
[352754054,1739292657624,-500.0,0.00016712,2]
[352754055,1739292657634,-353.35313346,0.00016712,2]
[352754056,1739292657644,-500.0,0.00016712,2]
[352754057,1739292657654,-1328.94,0.00016712,2]
[352754058,1739292657664,-702.14,0.00016712,2]
[352754059,1739292657674,-500.0,0.00016712,2]
[352754060,1739292657684,-500.0,0.00016712,2]
[352754061,1739292657694,-500.0,0.00016712,2]
[352754062,1739292657704,-500.0,0.00016712,2]
[352754063,1739292657713,-653.21,0.00016712,2]
[352754064,1739292657724,-500.0,0.00016712,2]
[352754065,1739292657733,-184.233011,0.00016712,2]
[352754066,1739292657743,-184.233011,0.00016712,2]
[352754067,1739292657755,-500.0,0.00016712,2]
[352754068,1739292657764,-500.0,0.00016712,2]
[352754069,1739292657775,-500.0,0.00016712,2]
[352754070,1739292657785,-184.233011,0.00016712,2]
[352754071,1739292657795,-505.62,0.00016712,2]
[352754072,1739292657804,-184.233011,0.00016712,2]
[352754073,1739292657814,-781.92,0.00016712,2]
[352754074,1739292657824,-151.0,0.00016712,2]
[352754075,1739292657834,-151.0,0.00016712,2]
[352754076,1739292657844,-500.0,0.00016712,2]
[352754077,1739292657854,-500.0,0.00016712,2]
[352754078,1739292657863,-194.628952,0.00016712,2]
[352754079,1739292657878,-194.628952,0.00016712,2]
[352754080,1739292657888,-500.0,0.00016712,2]
[352754081,1739292657898,-768.57,0.00016712,2]
[352754082,1739292657907,-412.116862,0.00016712,2]
[352754083,1739292657918,-412.116862,0.00016712,2]
[352754084,1739292657927,-194.628952,0.00016712,2]
[352754085,1739292657937,-194.628952,0.00016712,2]
[352754086,1739292657947,-412.116862,0.00016712,2]
[352754087,1739292657957,-412.116862,0.00016712,2]
[352754088,1739292657967,-151.0,0.00016712,2]
[352754089,1739292657977,-151.0,0.00016712,2]
[352754090,1739292657987,-168.491744,0.00016712,2]
[352754091,1739292657996,-168.491744,0.00016712,2]
[352754092,1739292658006,-168.491744,0.00016712,2]
[352754093,1739292658015,-168.491744,0.00016712,2]
[352754094,1739292658025,-733.07,0.00016712,2]
[352754095,1739292658034,-255.785126,0.00016712,2]
[352754096,1739292658046,-255.785126,0.00016712,2]
[352754097,1739292658056,-500.0,0.00016712,2]
[352754098,1739292658067,-255.785126,0.00016712,2]
[352754099,1739292658082,-500.0,0.00016712,2]
[352754100,1739292658092,-500.0,0.00016712,2]
[352754101,1739292658102,-255.785126,0.00016712,2]
[352754102,1739292658112,-500.0,0.00016712,2]
[352754103,1739292658123,-151.0,0.00016712,2]
[352754104,1739292658134,-607.06,0.00016712,2]
[352754105,1739292658143,-151.0,0.00016712,2]
[352754106,1739292658153,-708.15,0.00016712,2]
[352754107,1739292658164,-500.0,0.00016712,2]
[352754108,1739292658175,-1118.08,0.00016712,2]
[352754109,1739292658186,-500.0,0.00016712,2]
[352754110,1739292658196,-500.0,0.00016712,2]
[352754111,1739292658206,-500.0,0.00016712,2]
[352754112,1739292658216,-1638.68,0.00016712,2]
[352754113,1739292658227,-500.0,0.00016712,2]
[352754114,1739292658238,-500.0,0.00016712,2]
[352754115,1739292658249,-500.0,0.00016712,2]
[352754116,1739292658261,-972.23,0.00016712,2]
[352754117,1739292658271,-500.0,0.00016712,2]
[352754118,1739292658281,-1025.95,0.00016712,2]
[352754119,1739292658291,-269.28,0.00016712,2]
[352754120,1739292658302,-849.42,0.00016712,2]
[352754121,1739292658312,-589.34,0.00016712,2]
[352754122,1739292658323,-500.0,0.00016712,2]
[352754123,1739292658332,-623.19,0.00016712,2]
[352754124,1739292658342,-949.12,0.00016712,2]
[352754125,1739292658352,-774.19,0.00016712,2]
[352754126,1739292658361,-592.84,0.00016712,2]
[352754127,1739292658371,-500.0,0.00016712,2]
[352754128,1739292658382,-897.44,0.00016712,2]
[352754129,1739292658392,-395.39,0.00016712,2]
[352754130,1739292658402,-500.0,0.00016712,2]
[352754131,1739292658412,-1236.71,0.00016712,2]
[352754132,1739292658422,-500.0,0.00016712,2]
[352754133,1739292658432,-500.0,0.00016712,2]
[352754134,1739292658442,-1146.12,0.00016712,2]
[352754135,1739292658451,-877.02,0.00016712,2]
[352754136,1739292658461,-500.0,0.00016712,2]
[352754137,1739292658470,-500.0,0.00016712,2]
[352754138,1739292658480,-636.96,0.00016712,2]
[352754139,1739292658489,-500.0,0.00016712,2]
[352754140,1739292658500,-500.0,0.00016712,2]
[352754141,1739292658509,-500.0,0.00016712,2]
[352754142,1739292658519,-151.0,0.00016712,2]
[352754143,1739292658528,-151.0,0.00016712,2]
[352754144,1739292658538,-1026.57,0.00016712,2]